fUSD/lending_fUSD_20250622
["ID","MTS","AMOUNT","RATE_DAILY","PERIOD"]
[366940632,1750593040180,-449.663828,0.0001948,2]
[366940634,1750593040190,-449.663828,0.0001948,2]
[366940636,1750593040199,-5000.0,0.0001948,2]
[366940638,1750593040209,-23503.6022,0.0001948,2]
[366940640,1750593040219,-151.0,0.0001948,2]
[366940642,1750593040229,-151.0,0.0001948,2]
[366940644,1750593040239,-151.0,0.0001948,2]
[366940646,1750593040248,-151.0,0.0001948,2]
[366940648,1750593040258,-151.0,0.0001948,2]
[366940650,1750593040267,-151.0,0.0001948,2]
[366940652,1750593040276,-151.0,0.0001948,2]
[366940654,1750593040286,-945.565872,0.0001948,2]
[366940656,1750593040295,-151.0,0.0001948,2]
[366940658,1750593040304,-945.565872,0.0001948,2]
[366940660,1750593040314,-157.230218,0.0001948,2]
[366940662,1750593040323,-10000.0,0.000195,3]
[366940664,1750593040332,-151.0,0.000195,2]
[366940666,1750593040341,-151.0,0.000195,2]
[366940668,1750593040351,-765.681044,0.000195,2]
[366940670,1750593040360,-765.681044,0.000195,2]
[366940672,1750593040369,-151.0,0.000195,2]
[366940674,1750593040378,-408.349528,0.000195,2]
[366940676,1750593040388,-153.489326,0.000195,2]
[366940679,1750593040398,-1680.0,0.00019507,2]
[366940681,1750593040407,-1561.4241365,0.0001956,2]
[366940683,1750593040417,-200.0,0.00019564,2]
[366940685,1750593040426,-151.48,0.0001957,2]
[366940687,1750593040435,-151.48,0.0001957,2]
[366940688,1750593040444,-151.48,0.0001957,2]
[366940690,1750593040453,-155.16420962,0.0001957,2]
[366940692,1750593040463,-1282.04753492,0.00019571,5]
[366940694,1750593040472,-155.183,0.00019571,2]
[366940696,1750593040481,-151.0,0.00019571,2]
[366940698,1750593040490,-151.0,0.00019571,2]
[366940700,1750593040500,-277.70039,0.00019571,2]
[366940702,1750593040509,-151.0,0.00019571,2]
[366940704,1750593040518,-500.0,0.00019573,2]
[366940706,1750593040528,-500.0,0.00019573,2]
[366940708,1750593040537,-500.0,0.00019573,2]
[366940710,1750593040547,-500.0,0.00019573,2]
[366940712,1750593040556,-500.0,0.00019573,2]
[366940714,1750593040566,-500.0,0.00019573,2]
[366940716,1750593040575,-500.0,0.00019573,2]
[366940718,1750593040588,-500.43012814,0.00019573,2]
[366940720,1750593040597,-500.50267874,0.00019573,2]
[366940722,1750593040606,-500.0,0.00019573,2]
[366940724,1750593040616,-156.07488646,0.00019573,2]
[366940726,1750593040625,-500.0,0.00019573,2]
[366940728,1750593040637,-500.0,0.00019573,2]
[366940730,1750593040646,-502.83672334,0.00019573,2]
[366940732,1750593040656,-500.83582982,0.00019573,2]
[366940734,1750593040667,-559.69951743,0.00019573,2]
[366940736,1750593040677,-500.0,0.00019573,2]
[366940738,1750593040686,-367.84689339,0.00019573,2]
[366940740,1750593040696,-528.80985038,0.00019573,2]
[366940743,1750593040706,-502.52562412,0.00019573,2]
[366940745,1750593040718,-500.0,0.00019573,2]
[366940746,1750593040727,-541.45082461,0.00019573,2]
[366940748,1750593040737,-500.0,0.00019573,2]
[366940750,1750593040745,-500.0,0.00019573,2]
[366940752,1750593040755,-168.0,0.00019573,2]
[366940754,1750593040764,-204.054934,0.00019573,2]
[366940756,1750593040774,-151.0,0.00019573,2]
[366940758,1750593040783,-151.0,0.00019573,2]
[366940760,1750593040792,-154.753994,0.00019573,2]
[366940762,1750593040801,-154.753994,0.00019573,2]
[366940764,1750593040811,-151.0,0.00019573,2]
[366940766,1750593040821,-151.0,0.00019573,2]
[366940768,1750593040830,-151.0,0.00019573,2]
[366940770,1750593040840,-151.0,0.00019573,2]
[366940772,1750593040850,-151.0,0.00019573,2]
[366940774,1750593040860,-207.186243,0.00019573,2]
[366940776,1750593040868,-1863.510272,0.00019573,2]
[366940778,1750593040878,-1863.510272,0.00019573,2]
[366940779,1750593040887,-151.0,0.00019573,2]
[366940781,1750593040896,-449.663828,0.00019573,2]
[366940783,1750593040906,-449.663828,0.00019573,2]
[366940785,1750593040915,-151.0,0.00019573,2]
[366940788,1750593040924,-201.216175,0.00019573,2]
[366940789,1750593040933,-151.0,0.00019573,2]
[366940791,1750593040943,-265.111152,0.00019573,2]
[366940793,1750593040952,-151.0,0.00019573,2]
[366940795,1750593040961,-151.0,0.00019573,2]
[366940797,1750593040970,-151.0,0.00019573,2]
[366940799,1750593040979,-278.034054,0.00019573,2]
[366940801,1750593040988,-151.0,0.00019573,2]
[366940803,1750593040997,-151.0,0.00019573,2]
[366940805,1750593041006,-151.0,0.00019573,2]
[366940807,1750593041015,-151.0,0.00019573,2]
[366940809,1750593041025,-241.645668,0.00019573,2]
[366940811,1750593041034,-151.0,0.00019573,2]
[366940813,1750593041043,-266.952788,0.00019573,2]
[366940815,1750593041052,-266.952788,0.00019573,2]
[366940817,1750593041061,-151.0,0.00019573,2]
[366940819,1750593041071,-151.0,0.00019573,2]
[366940821,1750593041080,-945.565872,0.00019573,2]
[366940823,1750593041090,-219.222692,0.00019573,2]
[366940825,1750593041099,-945.565872,0.00019573,2]
[366940827,1750593041109,-151.0,0.00019579,2]
[366940829,1750593041118,-151.0,0.00019579,2]
[366940831,1750593041127,-151.0,0.00019579,2]
[366940833,1750593041137,-151.0,0.00019579,2]
[366940835,1750593041146,-152.03867,0.00019579,2]
[366940837,1750593041155,-160.917405,0.00019579,2]
[366940839,1750593041164,-160.917405,0.00019579,2]
[366940841,1750593041173,-165.92,0.00019579,2]
[366940843,1750593041182,-151.0,0.00019579,2]
[366940845,1750593041191,-151.0,0.00019579,2]
[366940847,1750593041200,-765.681044,0.00019579,2]
[366940849,1750593041210,-765.681044,0.00019579,2]
[366940851,1750593041219,-151.0,0.00019579,2]
[366940853,1750593041228,-408.349528,0.00019579,2]
[366940855,1750593041238,-151.0,0.00019579,2]
[366940857,1750593041247,-155.522755,0.00019579,2]
[366940859,1750593041256,-151.0,0.00019579,2]
[366940861,1750593041265,-151.0,0.00019579,2]
[366940863,1750593041274,-151.0,0.00019579,2]
[366940865,1750593041283,-266.952788,0.00019579,2]
[366940867,1750593041292,-266.952788,0.00019579,2]
[366940869,1750593041301,-945.565872,0.00019579,2]
[366940871,1750593041311,-945.565872,0.00019579,2]
[366940873,1750593041320,-410.74969698,0.00019579,2]
[366940875,1750593041329,-500.0,0.00019579,2]
[366940877,1750593041338,-500.0,0.00019579,2]
[366940879,1750593041347,-500.0,0.00019579,2]
[366940881,1750593041356,-500.0,0.00019579,2]
[366940883,1750593041365,-500.0,0.00019579,2]
[366940885,1750593041375,-500.0,0.00019579,2]
[366940888,1750593041388,-500.0,0.00019579,2]
[366940890,1750593041397,-500.0,0.00019579,2]
[366940892,1750593041406,-500.0,0.00019579,2]
[366940893,1750593041417,-500.0,0.00019579,2]
[366940895,1750593041426,-500.0,0.00019579,2]
[366940897,1750593041435,-500.0,0.00019579,2]
[366940899,1750593041444,-500.0,0.00019579,2]
[366940901,1750593041453,-300.0,0.00019579,2]
[366940903,1750593041463,-300.0,0.00019579,2]
[366940905,1750593041472,-2107.18464494,0.0001958,2]
[366940907,1750593041481,-1478223.61971252,0.0001958,2]
[366940909,1750593041490,-744.25880383,0.0001958,2]
[366940911,1750593041499,-151.82235481,0.0001958,2]
[366940913,1750593041509,-151.0,0.0001958,2]
[366940915,1750593041523,-155.164571,0.0001958,2]
[366940918,1750593041533,-152.126494,0.0001958,2]
[366940920,1750593041542,-151.0,0.0001958,2]
[366940921,1750593041551,-152.729053,0.0001958,2]
[366940924,1750593041560,-154.223574,0.0001958,2]
[366940925,1750593041570,-153.498088,0.0001958,2]
[366940927,1750593041579,-151.0,0.0001958,2]
[366940929,1750593041592,-151.0,0.0001958,2]
[366940930,1750593041601,-151.0,0.0001958,2]
[366940932,1750593041610,-160.917405,0.0001958,2]
[366940934,1750593041619,-160.917405,0.0001958,2]
[366940936,1750593041628,-151.0,0.0001958,2]
[366940938,1750593041638,-153.789939,0.0001958,2]
[366940940,1750593041647,-154.753994,0.0001958,2]
[366940942,1750593041657,-154.753994,0.0001958,2]
[366940944,1750593041668,-290.477561,0.0001958,2]
[366940946,1750593041677,-151.0,0.0001958,2]
[366940949,1750593041691,-153.311394,0.0001958,2]
[366940952,1750593041709,-151.0,0.0001958,2]
[366940954,1750593041722,-151.0,0.0001958,2]
[366940956,1750593041737,-151.0,0.0001958,2]
[366940959,1750593041752,-151.0,0.0001958,2]
[366940961,1750593041768,-765.681044,0.0001958,2]
[366940964,1750593041783,-765.681044,0.0001958,2]
[366940966,1750593041796,-151.0,0.0001958,2]
[366940969,1750593041810,-151.0,0.0001958,2]
[366940971,1750593041825,-408.349528,0.0001958,2]
[366940974,1750593041841,-1863.510272,0.0001958,2]
[366940977,1750593041857,-1863.510272,0.0001958,2]
[366940979,1750593041871,-151.0,0.0001958,2]
[366940982,1750593041888,-449.663828,0.0001958,2]
[366940984,1750593041903,-449.663828,0.0001958,2]
[366940987,1750593041917,-151.0,0.0001958,2]
[366940989,1750593041932,-151.0,0.0001958,2]
[366940992,1750593041948,-221.843212,0.0001958,2]
[366940994,1750593041961,-151.0,0.0001958,2]
[366940996,1750593041972,-151.0,0.0001958,2]
[366940999,1750593041984,-151.0,0.0001958,2]
[366941001,1750593042001,-151.0,0.0001958,2]
[366941004,1750593042012,-151.0,0.0001958,2]
[366941006,1750593042023,-181.524814,0.0001958,2]
[366941008,1750593042038,-266.952788,0.0001958,2]
[366941011,1750593042050,-266.952788,0.0001958,2]
[366941013,1750593042062,-151.0,0.0001958,2]
[366941015,1750593042075,-153.867627,0.0001958,2]
[366941018,1750593042088,-945.565872,0.0001958,2]
[366941020,1750593042100,-945.565872,0.0001958,2]
[366941022,1750593042112,-301.1,0.00019588,2]
[366941025,1750593042125,-355.09,0.00019588,2]
[366941027,1750593042139,-355.09,0.00019588,2]
[366941030,1750593042158,-150.0,0.00019588,2]
[366941032,1750593042171,-710.18,0.00019588,2]
[366941035,1750593042183,-170.97,0.00019588,2]
[366941037,1750593042196,-455.61,0.00019588,2]
[366941039,1750593042209,-170.97,0.00019588,2]
[366941042,1750593042221,-150.0,0.00019588,2]
[366941044,1750593042233,-675.73279277,0.00019599,2]
[366941046,1750593042245,-200.0,0.00019617,2]
[366941049,1750593042258,-150.0,0.00019675,2]
[366941051,1750593042270,-150.0,0.00019687,2]
[366941053,1750593042283,-2917.932075,0.000197,2]
[366941056,1750593042295,-700.0,0.000197,7]
[366941058,1750593042307,-150.0,0.00019705,2]
[366941060,1750593042321,-150.0,0.00019724,2]
[366941063,1750593042334,-150.0,0.00019724,2]
[366941065,1750593042346,-1863.510272,0.00019726,2]
[366941067,1750593042358,-1863.510272,0.00019726,2]
[366941070,1750593042370,-449.663828,0.00019726,2]
[366941072,1750593042383,-449.663828,0.00019726,2]
[366941074,1750593042396,-151.0,0.00019726,2]
[366941077,1750593042408,-266.952788,0.00019726,2]
[366941079,1750593042421,-266.952788,0.00019726,2]
[366941081,1750593042434,-150.0,0.00019726,2]
[366941084,1750593042447,-355.03,0.00019726,2]
[366941086,1750593042460,-396.41829146,0.00019729,2]
[366941088,1750593042471,-150.0,0.00019741,2]
[366941091,1750593042487,-150.0,0.00019751,2]
[366941093,1750593042500,-150.0,0.00019752,3]
[366941095,1750593042513,-150.0,0.00019752,3]
[366941098,1750593042525,-150.0,0.00019755,2]
[366941100,1750593042537,-150.0,0.00019756,2]
[366941102,1750593042549,-1000.0,0.0001976,2]
[366941105,1750593042562,-150.0,0.00019767,2]
[366941107,1750593042574,-150.0,0.0001977,2]
[366941109,1750593042588,-273.97434236,0.00019786,2]
[366941111,1750593042601,-945.0,0.00019796,2]
[366941114,1750593042614,-3336.0,0.00019796,2]
[366941116,1750593042626,-803.0,0.00019796,2]
[366941119,1750593042641,-638.0,0.00019796,2]
[366941120,1750593042653,-2005.0,0.00019796,2]
[366941123,1750593042667,-591.0,0.00019796,2]
[366941125,1750593042680,-1278.0,0.00019796,2]
[366941127,1750593042692,-929.0,0.00019796,2]
[366941130,1750593042705,-556.684,0.00019796,2]
[366941132,1750593042718,-1350.059,0.00019796,2]
[366941134,1750593042731,-4096.0,0.00019796,2]
[366941137,1750593042743,-156.0,0.00019796,2]
[366941139,1750593042756,-885.0,0.00019796,2]
[366941142,1750593042769,-855.0,0.00019796,2]
[366941144,1750593042782,-151.0,0.00019796,2]
[366941146,1750593042795,-151.0,0.00019796,2]
[366941149,1750593042808,-214.052526,0.00019796,2]
[366941151,1750593042821,-160.917405,0.00019796,2]
[366941153,1750593042834,-160.917405,0.00019796,2]
[366941156,1750593042848,-151.0,0.00019796,2]
[366941158,1750593042861,-154.753994,0.00019796,2]
[366941162,1750593042874,-154.753994,0.00019796,2]
[366941165,1750593042887,-151.0,0.00019796,2]
[366941167,1750593042900,-151.0,0.00019796,2]
[366941169,1750593042913,-151.0,0.00019796,2]
[366941173,1750593042926,-151.0,0.00019796,2]
[366941176,1750593042939,-151.0,0.00019796,2]
[366941179,1750593042952,-765.681044,0.00019796,2]
[366941181,1750593042965,-765.681044,0.00019796,2]
[366941184,1750593042978,-151.0,0.00019796,2]
[366941187,1750593042991,-176.81507,0.00019796,2]
[366941189,1750593043004,-408.349528,0.00019796,2]
[366941190,1750593043017,-151.0,0.00019796,2]
[366941191,1750593043031,-151.0,0.00019796,2]
[366941192,1750593043044,-151.0,0.00019796,2]
[366941193,1750593043057,-151.0,0.00019796,2]
[366941195,1750593043070,-151.0,0.00019796,2]
[366941197,1750593043083,-151.0,0.00019796,2]
[366941198,1750593043096,-151.0,0.00019796,2]
[366941199,1750593043109,-945.565872,0.00019796,2]
[366941200,1750593043122,-945.565872,0.00019796,2]
[366941201,1750593043136,-151.0,0.000198,2]
[366941202,1750593043149,-1863.510272,0.000198,2]
[366941203,1750593043162,-1863.510272,0.000198,2]
[366941204,1750593043175,-449.663828,0.000198,2]
[366941205,1750593043188,-449.663828,0.000198,2]
[366941207,1750593043201,-1500.0,0.000198,7]
[366941210,1750593043213,-151.0,0.000198,2]
[366941212,1750593043227,-151.0,0.000198,2]
[366941214,1750593043239,-240.840495,0.000198,2]
[366941217,1750593043252,-266.952788,0.000198,2]
[366941219,1750593043264,-266.952788,0.000198,2]
[366941221,1750593043277,-150.0,0.00019803,2]
[366941224,1750593043289,-945.565872,0.00019803,2]
[366941226,1750593043301,-945.565872,0.00019803,2]
[366941228,1750593043313,-150.0,0.00019807,2]
[366941231,1750593043326,-200.0,0.0001981,2]
[366941233,1750593043338,-150.0,0.00019812,2]
[366941235,1750593043351,-152.976655,0.00019817,2]
[366941237,1750593043364,-151.0,0.00019817,2]
[366941240,1750593043377,-151.0,0.00019817,2]
[366941242,1750593043389,-359.434,0.00019822,2]
[366941245,1750593043402,-239.24451568,0.00019826,2]
[366941247,1750593043414,-1000.0,0.00019827,2]
[366941249,1750593043427,-300.0,0.00019832,2]
[366941252,1750593043440,-150.0,0.00019832,2]
[366941254,1750593043452,-3232.74560579,0.00019833,2]
[366941256,1750593043464,-150.0,0.0001984,2]
[366941258,1750593043477,-1000.0,0.00019844,2]
[366941261,1750593043490,-150.0,0.00019849,2]
[366941263,1750593043502,-150.0,0.00019853,2]
[366941265,1750593043514,-150.0,0.00019876,2]
[366941268,1750593043527,-150.0,0.0001988,2]
[366941270,1750593043540,-150.0,0.00019888,2]
[366941272,1750593043552,-4745.61033288,0.00019889,2]
[366941275,1750593043565,-151.0,0.00019889,2]
[366941277,1750593043577,-408.349528,0.00019889,2]
[366941279,1750593043592,-151.0,0.00019889,2]
[366941283,1750593043605,-151.0,0.00019889,2]
[366941285,1750593043617,-150.0,0.00019892,2]
[366941287,1750593043630,-150.0,0.00019893,2]
[366941290,1750593043644,-201.0,0.00019897,5]
[366941292,1750593043656,-383.06454144,0.00019899,2]
[366941294,1750593043668,-151.0,0.000199,2]
[366941297,1750593043681,-154.753994,0.000199,2]
[366941299,1750593043693,-154.753994,0.000199,2]
[366941301,1750593043705,-152.863227,0.000199,2]
[366941304,1750593043717,-151.0,0.000199,2]
[366941306,1750593043731,-151.0,0.000199,2]
[366941308,1750593043743,-213.90171,0.000199,2]
[366941311,1750593043756,-765.681044,0.000199,2]
[366941313,1750593043768,-765.681044,0.000199,2]
[366941315,1750593043780,-151.0,0.000199,2]
[366941318,1750593043793,-2200.0,0.000199,7]
[366941320,1750593043805,-266.952788,0.000199,2]
[366941322,1750593043818,-266.952788,0.000199,2]
[366941323,1750593043832,-150.0,0.000199,2]
[366941324,1750593043844,-150.0,0.00019901,2]
[366941325,1750593043856,-150.0,0.00019906,2]
[366941326,1750593043871,-150.0,0.00019918,2]
[366941327,1750593043884,-150.0,0.0001992,2]
[366941328,1750593043897,-150.0,0.00019926,2]
[366941329,1750593043909,-1000.0,0.00019928,2]
[366941330,1750593043922,-150.0,0.0001993,2]
[366941331,1750593043934,-1000.0,0.00019934,2]
[366941332,1750593043948,-151.0,0.00019934,2]
[366941333,1750593043962,-150.0,0.00019939,2]
[366941334,1750593043975,-151.0,0.0001994,2]
[366941335,1750593043987,-150.0,0.00019947,2]
[366941336,1750593043999,-150.0,0.00019951,2]
[366941337,1750593044013,-150.0,0.00019952,2]
[366941338,1750593044025,-300.0,0.00019959,2]
[366941340,1750593044037,-151.0,0.00019971,2]
[366941342,1750593044049,-151.0,0.00019971,2]
[366941345,1750593044061,-151.0,0.00019971,2]
[366941347,1750593044073,-160.917405,0.00019971,2]
[366941349,1750593044086,-160.917405,0.00019971,2]
[366941352,1750593044099,-151.0,0.00019971,2]
[366941354,1750593044111,-408.349528,0.00019971,2]
[366941356,1750593044123,-1863.510272,0.00019971,2]
[366941359,1750593044136,-1863.510272,0.00019971,2]
[366941361,1750593044147,-150.0,0.00019971,2]
[366941363,1750593044159,-449.663828,0.00019971,2]
[366941365,1750593044171,-449.663828,0.00019971,2]
[366941368,1750593044183,-151.0,0.00019971,2]
[366941370,1750593044196,-151.0,0.00019971,2]
[366941372,1750593044208,-151.0,0.00019971,2]
[366941375,1750593044221,-202.548111,0.00019971,2]
[366941377,1750593044231,-266.952788,0.00019971,2]
[366941379,1750593044240,-266.952788,0.00019971,2]
[366941381,1750593044250,-151.0,0.00019971,2]
[366941383,1750593044259,-945.565872,0.00019971,2]
[366941386,1750593044269,-945.565872,0.00019971,2]
[366941388,1750593044278,-2917.932075,0.00019972,3]
[366941390,1750593044288,-151.0,0.00019972,2]
[366941392,1750593044297,-154.753994,0.00019972,2]
[366941393,1750593044306,-154.753994,0.00019972,2]
[366941395,1750593044316,-207.880736,0.00019972,2]
[366941397,1750593044326,-151.0,0.00019972,2]
[366941399,1750593044336,-765.681044,0.00019972,2]
[366941401,1750593044346,-765.681044,0.00019972,2]
[366941404,1750593044356,-151.0,0.00019972,2]
[366941406,1750593044366,-1000.01,0.00019979,2]
[366941408,1750593044375,-151.0,0.0001998,2]
[366941410,1750593044385,-218.484371,0.0001998,2]
[366941412,1750593044395,-151.0,0.0001998,2]
[366941414,1750593044404,-150.0,0.0001998,2]
[366941416,1750593044414,-34815.300092,0.0001998,2]
[366941466,1750593044424,-150.0,0.0001998,2]
[366941472,1750593044942,-3542.09336681,0.0001998,2]
[366941476,1750593044972,-151.0,0.0001998,2]
[366941479,1750593044992,-152.919201,0.0001998,2]
[366941481,1750593045002,-151.0,0.0001998,2]
[366941483,1750593045011,-151.0,0.0001998,2]
[366941485,1750593045021,-151.0,0.0001998,2]
[366941487,1750593045030,-160.917405,0.0001998,2]
[366941488,1750593045039,-160.917405,0.0001998,2]
[366941491,1750593045048,-151.0,0.0001998,2]
[366941493,1750593045058,-154.753994,0.0001998,2]
[366941495,1750593045069,-154.753994,0.0001998,2]
[366941497,1750593045079,-151.0,0.0001998,2]
[366941498,1750593045088,-151.0,0.0001998,2]
[366941500,1750593045097,-765.681044,0.0001998,2]
[366941502,1750593045107,-765.681044,0.0001998,2]
[366941504,1750593045116,-151.0,0.0001998,2]
[366941506,1750593045125,-408.349528,0.0001998,2]
[366941508,1750593045135,-408.349528,0.0001998,2]
[366941510,1750593045144,-1863.510272,0.0001998,2]
[366941513,1750593045154,-1863.510272,0.0001998,2]
[366941514,1750593045165,-449.663828,0.0001998,2]
[366941516,1750593045174,-449.663828,0.0001998,2]
[366941518,1750593045183,-151.0,0.0001998,2]
[366941520,1750593045192,-151.0,0.0001998,2]
[366941522,1750593045202,-151.0,0.0001998,2]
[366941524,1750593045211,-151.0,0.0001998,2]
[366941526,1750593045220,-266.952788,0.0001998,2]
[366941528,1750593045230,-266.95278,0.0001998,2]
[366941530,1750593045239,-151.0,0.0001998,2]
[366941532,1750593045249,-945.565872,0.0001998,2]
[366941535,1750593045258,-945.565872,0.0001998,2]
[366941537,1750593045269,-1000.0,0.00019985,2]
[366941539,1750593045279,-500.0,0.00019998,2]
[366941541,1750593045289,-59197.58307081,0.0002,2]
[366941543,1750593045298,-216.55545651,0.0002,2]
[366941545,1750593045308,-500.0,0.0002,2]
[366941547,1750593045317,-8000.0,0.0002,15]
[366941549,1750593045326,-2917.932075,0.0002,5]
[366941551,1750593045335,-153.726719,0.0002,2]
[366941553,1750593045345,-151.0,0.0002,2]
[366941555,1750593045355,-160.917405,0.0002,2]
[366941557,1750593045364,-160.917405,0.0002,2]
[366941559,1750593045373,-151.0,0.0002,2]
[366941561,1750593045382,-154.753994,0.0002,2]
[366941562,1750593045392,-154.753994,0.0002,2]
[366941564,1750593045401,-262.052721,0.0002,2]
[366941566,1750593045411,-151.0,0.0002,2]
[366941568,1750593045420,-765.681044,0.0002,2]
[366941570,1750593045429,-765.681044,0.0002,2]
[366941572,1750593045438,-151.0,0.0002,2]
[366941574,1750593045448,-408.349528,0.0002,2]
[366941576,1750593045459,-408.34952028,0.0002,2]
[366941578,1750593045468,-1863.510272,0.0002,2]
[366941580,1750593045477,-1863.510272,0.0002,2]
[366941582,1750593045487,-449.663828,0.0002,2]
[366941584,1750593045497,-449.663836,0.0002,2]
[366941586,1750593045506,-1000.0,0.0002,2]
[366941588,1750593045515,-151.0,0.0002,2]
[366941590,1750593045525,-165.7,0.0002,2]
[366941592,1750593045535,-151.0,0.0002,2]
[366941594,1750593045545,-200.0,0.0002,2]
[366941596,1750593045554,-945.565872,0.0002,2]
[366941598,1750593045564,-945.565862,0.0002,2]
[366941600,1750593045573,-1746.0,0.0002003,2]
[366941602,1750593045583,-168.0,0.00020068,2]
[366941604,1750593045596,-286.75,0.00020086,2]
[366941607,1750593045605,-151.0,0.000201,2]
[366941609,1750593045615,-151.0,0.000201,2]
[366941611,1750593045625,-1243.07852316,0.000201,2]
[366941613,1750593045636,-1243.07852305,0.000201,2]
[366941615,1750593045645,-1243.07852305,0.000201,2]
[366941617,1750593045655,-1500.0,0.00020111,7]
[366941619,1750593045666,-1500.0,0.00020111,7]
[366941621,1750593045676,-1500.0,0.00020111,7]
[366941623,1750593045685,-1500.0,0.00020111,7]
[366941625,1750593045695,-1500.0,0.00020111,7]
[366941627,1750593045704,-1500.0,0.00020111,7]
[366941629,1750593045713,-1500.0,0.00020111,7]
[366941631,1750593045722,-1500.0,0.00020111,7]
[366941633,1750593045731,-1500.0,0.00020111,7]
[366941635,1750593045741,-1500.0,0.00020111,7]
[366941637,1750593045753,-1500.0,0.00020111,7]
[366941639,1750593045763,-1500.0,0.00020111,7]
[366941641,1750593045772,-1500.0,0.00020111,7]
[366941643,1750593045781,-1500.0,0.00020111,7]
[366941645,1750593045790,-1500.0,0.00020111,7]
[366941647,1750593045799,-1500.0,0.00020111,7]
[366941649,1750593045808,-1500.0,0.00020111,7]
[366941651,1750593045818,-1500.0,0.00020111,7]
[366941653,1750593045828,-1500.0,0.00020111,7]
[366941655,1750593045839,-1378.560509,0.00020111,7]
[366941657,1750593045848,-151.0,0.00020111,2]
[366941659,1750593045858,-765.681044,0.00020111,2]
[366941661,1750593045867,-765.681051,0.00020111,2]
[366941663,1750593045876,-151.0,0.00020111,2]
[366941665,1750593045886,-151.0,0.00020111,2]
[366941667,1750593045896,-1000.0,0.00020121,2]
[366941669,1750593045906,-1000.0,0.00020121,2]
[366941671,1750593045915,-1000.0,0.00020121,2]
[366941673,1750593045925,-1000.0,0.00020121,2]
[366941675,1750593045935,-329.60166473,0.00020121,2]
[366941677,1750593045944,-182.45941547,0.00020121,2]
[366941679,1750593045955,-1000.0,0.00020121,2]
[366941681,1750593045964,-655.72322114,0.00020121,2]
[366941683,1750593045973,-501.26858768,0.00020121,2]
[366941685,1750593045983,-1003.17414106,0.00020121,2]
[366941687,1750593045992,-1000.0,0.00020121,2]
[366941689,1750593046002,-1000.0,0.00020121,2]
[366941692,1750593046011,-501.8662717,0.00020121,2]
[366941693,1750593046020,-379.59481015,0.00020121,2]
[366941695,1750593046030,-151.0,0.00020121,2]
[366941698,1750593046040,-154.753994,0.00020121,2]
[366941700,1750593046049,-154.753994,0.00020121,2]
[366941702,1750593046059,-151.0,0.00020121,2]
[366941704,1750593046068,-151.0,0.0002014,2]
[366941706,1750593046077,-160.917405,0.0002014,2]
[366941708,1750593046087,-160.917405,0.0002014,2]
[366941710,1750593046097,-196.27,0.00020187,2]
[366941712,1750593046107,-834.42866044,0.000202,7]
[366941714,1750593046116,-4000.0,0.00020221,4]
[366941716,1750593046125,-156.587,0.00020251,2]
[366941718,1750593046135,-215.0738,0.00020251,2]
[366941720,1750593046144,-5007.59468674,0.00020258,2]
[366941722,1750593046153,-1243.07852305,0.00020279,3]